[Event "VII Totalizator Sportowy 2022"]
[Site "Bydgoszcz"]
[Date "2022.07.01"]
[Round "7.21"]
[White "Paprocki, Jaroslaw"]
[Black "Kolodziejski, Piotr"]
[Result "1-0"]
[ECO "A16"]
[WhiteElo "2165"]
[BlackElo "2107"]
[Annotator "RC"]
[PlyCount "87"]
[EventDate "2022.06.25"]
[EventType "swiss"]
[EventCountry "POL"]
[SourceTitle "playchess.com"]
[Source "ChessBase"]
[SourceQuality "1"]
[TimeControl "40/5400+30:1800+30"]

1. c4 {[%emt 0:00:03]} Nf6 {[%emt 0:00:20]} 2. Nc3 {[%emt 0:01:17]} e5 {[%emt 0:00:15]} 3. e3 {[%emt 0:00:13]} Bb4 {[%emt 0:02:22]} 4. Nge2 {[%emt 0:00:13]} c6 {[%emt 0:01:55]} 5. d4 {[%emt 0:08:36]} exd4 {[%emt 0:05:20]} 6. Qxd4 {[%emt 0:00:35]} d6 {[%emt 0:00:58]} 7. a3 {[%emt 0:02:56]} Ba5 {[%emt 0:01:15]} 8. g3 {[%emt 0:02:37]} O-O {[%emt 0:01:18]} 9. Bg2 {[%emt 0:00:06]} Na6 {[%emt 0:04:47]} 10. Qd1 {[%emt 0:06:10]} Bb6 {[%emt 0:07:39]} 11. O-O {[%emt 0:05:13]} Bf5 {[%emt 0:05:45]} 12. b4 {[%emt 0:06:10]} Qd7 {[%emt 0:08:25]} 13. Nf4 {[%emt 0:03:06]} Rfe8 {[%emt 0:04:01]} 14. Bb2 {[%emt 0:01:34]} Rad8 {[%emt 0:04:32]} 15. Na4 {[%emt 0:03:27]} Qe7 {[%emt 0:10:20]} 16. Nxb6 {[%emt 0:07:32]} axb6 {[%emt 0:00:07]} 17. Bd4 {[%emt 0:00:37]} Nd7 {[%emt 0:05:26]} 18. e4 {[%emt 0:03:35]} Be6 {[%emt 0:02:21]} 19. Rc1 {[%emt 0:02:22]} Nc7 {[%emt 0:03:39]} 20. Re1 {[%emt 0:02:52]} c5 {[%emt 0:03:13]} 21. Bb2 {[%emt 0:04:55]} Ne5 {[%emt 0:01:44]} 22. Nxe6 {[%emt 0:02:22]} Qxe6 {[%emt 0:01:39]} 23. Qe2 {[%emt 0:03:12]} Nd7 {[%emt 0:04:35]} 24. Qc2 {[%emt 0:03:21]} b5 {[%emt 0:03:41]} 25. Qc3 {[%emt 0:02:41]} Qh6 {[%emt 0:02:16]} 26. Rcd1 {[%emt 0:01:05]} bxc4 {[%emt 0:03:21]} 27. Qxc4 {[%emt 0:02:51]} Nb6 {[%emt 0:01:16]} 28. Qc2 {[%emt 0:00:54]} Ne6 {[%emt 0:00:54]} 29. e5 {[%emt 0:01:20]} dxe5 {[%emt 0:01:52]} 30. bxc5 {[%emt 0:00:55]} Nd7 {[%emt 0:01:44]} 31. c6 {[%emt 0:01:19]} bxc6 {[%emt 0:00:04]} 32. Qxc6 {[%emt 0:02:34]} Ndc5 {[%emt 0:02:04]} 33. Bxe5 {[%emt 0:02:50]} Rc8 {[%emt 0:01:58]} 34. Qb5 {[%emt 0:01:53]} Red8 {[%emt 0:00:56]} 35. Bd6 {[%emt 0:03:18]} Qh5 {[%emt 0:02:02]} 36. Rd5 {[%emt 0:00:26]} g5 {[%emt 0:02:30]} 37. Bxc5 {[%emt 0:03:32]} Rxd5 {[%emt 0:00:19]} 38. Bxd5 {[%emt 0:00:06]} Rxc5 {[%emt 0:00:47]} 39. Qb8+ {[%emt 0:02:41]} Nf8 {[%emt 0:00:24]} 40. Qd6 {[%emt 0:00:00]} Ra5 {[%emt 0:00:00]} 41. Re5 {[%emt 0:02:27]} Kg7 {[%emt 0:04:01]} 42. Rf5 {[%emt 0:01:27]} Qd1+ {[%emt 0:00:45]} 43. Kg2 {[%emt 0:00:13]} Ne6 {[%emt 0:00:47]} 44. Rxf7+ {[%emt 0:00:33]} 1-0

[Event "VII Totalizator Sportowy 2022"]
[Site "Bydgoszcz"]
[Date "2022.07.01"]
[Round "7.23"]
[White "Starosciak, Szymon"]
[Black "Sliwicki, Damian"]
[Result "1/2-1/2"]
[ECO "B36"]
[WhiteElo "1901"]
[BlackElo "2168"]
[Annotator "RC"]
[PlyCount "152"]
[EventDate "2022.06.25"]
[EventType "swiss"]
[EventCountry "POL"]
[SourceTitle "playchess.com"]
[Source "ChessBase"]
[SourceQuality "1"]
[TimeControl "40/5400+30:1800+30"]

1. e4 {[%emt 0:00:07]} c5 {[%emt 0:00:02]} 2. Nf3 {[%emt 0:00:04]} Nc6 {[%emt 0:00:03]} 3. d4 {[%emt 0:00:10]} cxd4 {[%emt 0:00:04]} 4. Nxd4 {[%emt 0:00:05]} g6 {[%emt 0:00:01]} 5. c4 {[%emt 0:00:49]} Nf6 {[%emt 0:00:04]} 6. Nc3 {[%emt 0:00:20]} Nxd4 {[%emt 0:00:02]} 7. Qxd4 {[%emt 0:00:09]} d6 {[%emt 0:00:00]} 8. Be2 {[%emt 0:00:46]} Bg7 {[%emt 0:00:04]} 9. Be3 {[%emt 0:00:28]} O-O {[%emt 0:00:05]} 10. Qd2 {[%emt 0:00:27]} a5 {[%emt 0:00:20]} 11. O-O {[%emt 0:00:51]} a4 {[%emt 0:00:04]} 12. Rad1 {[%emt 0:00:44]} Qa5 {[%emt 0:00:04]} 13. Bd4 {[%emt 0:01:56]} Bd7 14. Qe3 {[%emt 0:06:38]} Bc6 {[%emt 0:04:22]} 15. Nd5 {[%emt 0:01:26]} Bxd5 {[%emt 0:00:39]} 16. exd5 {[%emt 0:00:17]} b5 {[%emt 0:04:04]} 17. cxb5 {[%emt 0:19:02]} Nxd5 {[%emt 0:00:45]} 18. Qd2 {[%emt 0:12:59]} Qxd2 19. Rxd2 {[%emt 0:00:06]} Nf4 {[%emt 0:02:09]} 20. Bf3 {[%emt 0:02:41]} Rab8 {[%emt 0:00:07]} 21. Bxg7 Kxg7 {[%emt 0:00:01]} 22. Bc6 {[%emt 0:02:00]} Ne6 {[%emt 0:00:13]} 23. Re1 {[%emt 0:01:25]} Rfc8 {[%emt 0:02:48]} 24. g3 {[%emt 0:07:41]} Nd8 {[%emt 0:03:50]} 25. Rxe7 {[%emt 0:03:13]} Nxc6 {[%emt 0:00:03]} 26. bxc6 {[%emt 0:00:07]} Rxc6 {[%emt 0:00:04]} 27. Ra7 {[%emt 0:02:35]} Rb4 {[%emt 0:01:47]} 28. a3 {[%emt 0:01:59]} Rbc4 {[%emt 0:00:03]} 29. Rd7 {[%emt 0:00:37]} Rc2 {[%emt 0:07:34]} 30. Rxc2 {[%emt 0:01:22]} Rxc2 {[%emt 0:00:05]} 31. Rxd6 {[%emt 0:00:03]} Rxb2 {[%emt 0:00:07]} 32. Rd4 {[%emt 0:00:20]} h5 {[%emt 0:00:08]} 33. Rxa4 {[%emt 0:00:12]} Ra2 {[%emt 0:00:04]} 34. h4 {[%emt 0:03:40]} Kf6 {[%emt 0:00:04]} 35. Ra5 {[%emt 0:00:40]} Ke6 {[%emt 0:00:20]} 36. Kg2 {[%emt 0:00:17]} Kf6 {[%emt 0:00:16]} 37. Kf3 {[%emt 0:01:13]} Ke6 {[%emt 0:00:16]} 38. Ke3 {[%emt 0:00:39]} Kf6 {[%emt 0:00:07]} 39. Ra8 {[%emt 0:07:34]} Ke5 {[%emt 0:00:19]} 40. Kf3 {[%emt 0:00:00]} Kf5 {[%emt 0:00:00]} 41. Ra5+ {[%emt 0:02:32]} Ke6 {[%emt 0:01:45]} 42. a4 {[%emt 0:00:08]} Kf6 {[%emt 0:00:19]} 43. Ra7 {[%emt 0:00:14]} Ke5 {[%emt 0:01:11]} 44. Ra5+ {[%emt 0:04:27]} Ke6 {[%emt 0:00:10]} 45. Ke3 {[%emt 0:00:44]} Kf6 {[%emt 0:00:07]} 46. f3 {[%emt 0:03:11]} Ra3+ {[%emt 0:00:13]} 47. Kf4 {[%emt 0:00:34]} Rb3 {[%emt 0:05:24]} 48. Rb5 {[%emt 0:03:46]} Ra3 {[%emt 0:00:09]} 49. Rb6+ {[%emt 0:00:08]} Ke7 {[%emt 0:00:08]} 50. Ra6 {[%emt 0:00:24]} Rb3 {[%emt 0:00:20]} 51. Ke4 {[%emt 0:05:59]} Ra3 {[%emt 0:00:37]} 52. a5 {[%emt 0:02:15]} Kd7 {[%emt 0:00:23]} 53. Kf4 {[%emt 0:03:14]} Ke7 {[%emt 0:00:12]} 54. g4 {[%emt 0:03:31]} f6 {[%emt 0:13:13]} 55. g5 {[%emt 0:03:34]} Ra4+ {[%emt 0:00:04]} 56. Kg3 {[%emt 0:00:07]} fxg5 {[%emt 0:00:24]} 57. hxg5 {[%emt 0:01:05]} Kf7 {[%emt 0:01:12]} 58. Rf6+ {[%emt 0:01:57]} Kg7 {[%emt 0:01:08]} 59. a6 {[%emt 0:05:55]} Ra5 {[%emt 0:00:45]} 60. f4 {[%emt 0:00:49]} Ra3+ {[%emt 0:00:55]} 61. Kh4 {[%emt 0:05:01]} Ra4 {[%emt 0:02:15]} 62. Rb6 {[%emt 0:03:50]} Kf7 {[%emt 0:00:50]} 63. Kh3 {[%emt 0:02:09]} Ra3+ {[%emt 0:01:13]} 64. Kg2 {[%emt 0:00:40]} Ra2+ {[%emt 0:03:20]} 65. Kf3 {[%emt 0:02:00]} Ra4 {[%emt 0:09:03]} 66. Ke3 {[%emt 0:02:27]} h4 {[%emt 0:01:57]} 67. Kf3 {[%emt 0:00:49]} Ra3+ {[%emt 0:01:18]} 68. Kg2 {[%emt 0:00:17]} Rc3 {[%emt 0:00:21]} 69. Kh2 {[%emt 0:04:02]} Ra3 {[%emt 0:00:12]} 70. Rf6+ {[%emt 0:00:17]} Kg7 {[%emt 0:00:05]} 71. Kh1 {[%emt 0:00:38]} Ra2 {[%emt 0:00:36]} 72. Kg1 {[%emt 0:00:25]} Rb2 {[%emt 0:00:49]} 73. Rc6 {[%emt 0:00:54]} Kf7 {[%emt 0:00:06]} 74. Kh1 {[%emt 0:01:01]} Ra2 {[%emt 0:00:08]} 75. Rb6 {[%emt 0:00:17]} Rc2 {[%emt 0:00:15]} 76. Rf6+ {[%emt 0:00:46]} Kg7 {[%emt 0:00:01]} 1/2-1/2

[Event "VII Totalizator Sportowy 2022"]
[Site "Bydgoszcz"]
[Date "2022.07.01"]
[Round "7.24"]
[White "Kujawski, Adam"]
[Black "Hulka, Valentyn"]
[Result "1/2-1/2"]
[ECO "C92"]
[WhiteElo "2246"]
[BlackElo "2123"]
[Annotator "TA"]
[PlyCount "83"]
[EventDate "2022.06.25"]
[EventType "swiss"]
[EventCountry "POL"]
[SourceTitle "playchess.com"]
[Source "ChessBase"]
[SourceQuality "1"]
[TimeControl "40/5400+30:1800+30"]

{[%evp 26,83,31,3,0,0,14,0,0,0,0,-1,0,-7,-8,0,0,0,0,-15,-3,-23,0,0,22,0,35,0,27,0,0,0,0,0,0,0,0,0,0,0,0,0,0,0,0,0,0,0,0,-31,0,0,0,0,0,0,0,0,0,-23]} 1. e4 {[%emt 0:04:26]} e5 {[%emt 0:00:18]} 2. Nf3 {[%emt 0:00:07]} Nc6 {[%emt 0:00:06]} 3. Bb5 {[%emt 0:00:06]} a6 {[%emt 0:00:08]} 4. Ba4 {[%emt 0:00:04]} Nf6 {[%emt 0:00:06]} 5. O-O {[%emt 0:00:11]} Be7 {[%emt 0:00:17]} 6. Re1 {[%emt 0:00:09]} b5 {[%emt 0:00:09]} 7. Bb3 {[%emt 0:00:05]} O-O {[%emt 0:00:13]} 8. h3 {[%emt 0:00:23]} d6 {[%emt 0:00:12]} 9. c3 {[%emt 0:00:14]} Bb7 {[%emt 0:00:17]} 10. d4 {[%emt 0:00:22]} Re8 {[%emt 0:00:12]} 11. Ng5 {[%emt 0:00:21]} Rf8 {[%emt 0:00:06]} 12. Nf3 {[%emt 0:00:04]} Re8 {[%emt 0:00:13]} 13. Nbd2 {[%emt 0:00:48]} Bf8 {[%emt 0:00:08]} 14. a4 {[%emt 0:00:48] 14.Bc2 is setting a new trend.} Na5 {[%emt 0:00:29] C92: Closed Ruy Lopez: 9...Be6, Karpov and Flohr-Zaitsev Variations.} 15. Bc2 {[%emt 0:09:44]} b4 {[%emt 0:00:56]} 16. d5 {[%emt 0:06:38]} bxc3 {[%emt 0:03:46]} 17. bxc3 {[%emt 0:00:44]} c6 {[%emt 0:01:55]} 18. c4 {[%emt 0:00:35]} Qc7 {[%emt 0:03:03]} 19. Bd3 {[%emt 0:03:21]} Bc8 {[%emt 0:05:19]} 20. Nb3 {[%emt 0:09:10]} Nxb3 21. Qxb3 {[%emt 0:00:05] [#]} Nd7 $146 {[%emt 0:07:33]} ({Predecessor:} 21... Rb8 22. Qc2 Nd7 23. a5 Nc5 24. Bf1 Nb3 25. Rb1 Nxc1 26. Rxb8 Qxb8 27. dxc6 Qc7 28. Rxc1 Qxc6 29. c5 Qxc5 30. Bc4 Qxa5 31. Ng5 Be6 32. Nxe6 fxe6 33. Qb3 d5 {½-½ (31) Kraft,D (2206)-Happe,R (2307) GER email 2012}) 22. Qa3 {[%emt 0:06:33]} Nc5 {[%emt 0:01:26]} 23. Bc2 {[%emt 0:06:24]} Bd7 {[%emt 0:03:30]} 24. Be3 {[%emt 0:11:47]} Rab8 {[%emt 0:06:32]} 25. Rab1 {[%emt 0:04:46]} f6 {[%emt 0:07:30]} 26. Nd2 {[%emt 0:01:48]} Qa5 {[%emt 0:03:43]} 27. Rxb8 {[%emt 0:08:03]} Rxb8 {[%emt 0:00:10]} 28. Rb1 {[%emt 0:02:12]} Rxb1+ {[%emt 0:03:40]} 29. Nxb1 {[%emt 0:00:18]} cxd5 {[%emt 0:03:15]} 30. Bd2 {[%emt 0:04:26] Inhibits Qe1+.} Qb6 {[%emt 0:01:52][%cal Od7a4] [#] And now ...Bxa4! would win.} 31. a5 {[%emt 0:00:19]} Qb7 {[%emt 0:00:42] ...d4 is the strong threat.} 32. cxd5 {[%emt 0:00:21]} Ba4 {[%emt 0:07:04]} 33. Qa2 {[%emt 0:01:21]} Bxc2 {[%emt 0:00:36]} 34. Qxc2 {[%emt 0:00:05]} f5 {[%emt 0:00:19]} 35. f3 {[%emt 0:01:22]} fxe4 {[%emt 0:00:09]} 36. fxe4 {[%emt 0:00:11]} Qb5 {[%emt 0:00:03]} 37. Be1 {[%emt 0:04:50]} Nd3 {[%emt 0:02:37]} 38. Bd2 {[%emt 0:06:25] The position is equal.} Nc5 {[%emt 0:00:33]} 39. Kf2 {[%emt 0:08:59] Inhibits Qe2+.} Nd3+ {[%emt 0:01:50]} 40. Kg3 {[%emt 0:00:00] [#] Threatens to win with Na3.} Nc5 {[%emt 0:00:00]} 41. Kf2 {[%emt 0:19:48] Inhibits Qe2+.} Nd3+ {[%emt 0:01:14]} 42. Kg1 {[%emt 0:05:10] An uneventful encounter.  Weighted Error Value: White=0.08 (flawless) /Black=0.05 (flawless)} 1/2-1/2

[Event "VII Totalizator Sportowy 2022"]
[Site "Bydgoszcz"]
[Date "2022.07.01"]
[Round "7.25"]
[White "Malczyk, Radoslaw"]
[Black "Zaninotto, Franco"]
[Result "1/2-1/2"]
[ECO "A45"]
[WhiteElo "2067"]
[BlackElo "2069"]
[Annotator "NA RC"]
[PlyCount "133"]
[EventDate "2022.06.25"]
[EventType "swiss"]
[EventCountry "POL"]
[SourceTitle "playchess.com"]
[Source "ChessBase"]
[SourceQuality "1"]
[TimeControl "40/5400+30:1800+30"]

1. d4 {[%emt 0:00:07]} Nf6 {[%emt 0:00:05]} 2. Bg5 {[%emt 0:00:08]} d5 {[%emt 0:00:06]} 3. Bxf6 {[%emt 0:00:29]} gxf6 {[%emt 0:00:05]} 4. e3 {[%emt 0:00:14]} c5 {[%emt 0:00:05]} 5. Nc3 {[%emt 0:01:04]} e6 {[%emt 0:00:16]} 6. Nf3 {[%emt 0:01:31]} a6 {[%emt 0:01:07]} 7. a4 {[%emt 0:00:28]} Nc6 {[%emt 0:03:05]} 8. g3 {[%emt 0:00:55]} f5 {[%emt 0:10:20]} 9. Bg2 {[%emt 0:00:25]} cxd4 {[%emt 0:01:42]} 10. exd4 {[%emt 0:00:26]} Bg7 {[%emt 0:00:32]} 11. Ne2 {[%emt 0:00:22]} Bh6 {[%emt 0:03:35]} 12. O-O {[%emt 0:01:15]} O-O {[%emt 0:00:42]} 13. c3 {[%emt 0:01:08]} Bd7 {[%emt 0:05:47]} 14. Kh1 {[%emt 0:00:17]} Ne7 {[%emt 0:03:31]} 15. Ne5 {[%emt 0:03:31]} Ng6 {[%emt 0:06:31]} 16. f4 {[%emt 0:00:48]} Qe7 {[%emt 0:07:40]} 17. Re1 {[%emt 0:02:34]} Nxe5 18. dxe5 {[%emt 0:00:45]} Rfc8 {[%emt 0:11:31]} 19. Nd4 {[%emt 0:00:23]} Bf8 {[%emt 0:05:48]} 20. Bf1 {[%emt 0:02:10]} b5 {[%emt 0:05:23]} 21. a5 {[%emt 0:01:20]} b4 {[%emt 0:00:31]} 22. Re3 {[%emt 0:00:10]} Bb5 {[%emt 0:02:23]} 23. Bh3 {[%emt 0:09:18]} bxc3 {[%emt 0:01:24]} 24. bxc3 {[%emt 0:01:35]} Kh8 {[%emt 0:01:54]} 25. Qh5 {[%emt 0:00:14]} Be8 {[%emt 0:01:02]} 26. g4 {[%emt 0:21:06]} f6 {[%emt 0:01:27]} 27. exf6 {[%emt 0:00:10]} Qxf6 {[%emt 0:01:42]} 28. Qg5 {[%emt 0:01:18]} Qxg5 {[%emt 0:01:21]} 29. fxg5 {[%emt 0:00:05]} f4 {[%emt 0:03:01]} 30. Rxe6 {[%emt 0:02:36]} Rxc3 {[%emt 0:00:31]} 31. Bg2 {[%emt 0:00:09]} Bg7 {[%emt 0:06:16]} 32. Nf5 {[%emt 0:00:20]} f3 {[%emt 0:01:05]} 33. Bf1 {[%emt 0:00:21]} Rc6 {[%emt 0:08:07]} 34. Nxg7 {[%emt 0:00:21]} Kxg7 {[%emt 0:00:19]} 35. Re7+ {[%emt 0:05:54]} Kg8 {[%emt 0:02:54]} 36. Bd3 {[%emt 0:02:09]} Bg6 {[%emt 0:00:15]} 37. Bf5 {[%emt 0:00:59]} Rf8 {[%emt 0:02:06]} 38. Re5 {[%emt 0:00:09]} Rc5 {[%emt 0:01:48]} 39. Rf1 {[%emt 0:01:02]} Rxa5 {[%emt 0:02:09]} 40. Rxf3 {[%emt 0:00:00]} Ra1+ {[%emt 0:00:00]} 41. Kg2 {[%emt 0:00:29]} Rd8 {[%emt 0:10:41]} 42. Be6+ {[%emt 0:03:40]} Kg7 {[%emt 0:00:36]} 43. Rxd5 {[%emt 0:00:30]} Rxd5 {[%emt 0:00:10]} 44. Bxd5 {[%emt 0:00:04]} Ra5 {[%emt 0:00:08]} 45. Bb7 {[%emt 0:02:27]} Rxg5 {[%emt 0:00:08]} 46. Rf4 {[%emt 0:01:20]} a5 {[%emt 0:00:43]} 47. Rc4 {[%emt 0:14:11]} Rb5 {[%emt 0:01:40]} 48. Rc7+ {[%emt 0:01:12]} Kf6 {[%emt 0:01:36]} 49. Kg3 {[%emt 0:00:05]} a4 {[%emt 0:01:14]} 50. Bc8 {[%emt 0:03:41]} Ra5 {[%emt 0:04:07]} 51. Kf4 {[%emt 0:00:20]} h6 {[%emt 0:05:03]} 52. h4 {[%emt 0:00:11]} Bf7 {[%emt 0:01:23]} 53. Bf5 {[%emt 0:03:07]} a3 {[%emt 0:07:21]} 54. g5+ {[%emt 0:00:42]} hxg5+ {[%emt 0:00:05]} 55. hxg5+ {[%emt 0:00:07]} Kg7 {[%emt 0:00:02]} 56. Be6 {[%emt 0:04:55]} a2 {[%emt 0:00:09]} 57. Rxf7+ {[%emt 0:00:12]} Kg6 {[%emt 0:00:50]} 58. Rf6+ {[%emt 0:00:25]} Kg7 {[%emt 0:00:10]} 59. Bxa2 {[%emt 0:00:41]} Rxa2 {[%emt 0:00:05]} 60. Rb6 {[%emt 0:00:59]} Ra4+ {[%emt 0:00:44]} 61. Kf5 {[%emt 0:00:13]} Ra5+ {[%emt 0:00:11]} 62. Kg4 {[%emt 0:00:09]} Ra8 {[%emt 0:00:21]} 63. Kh5 {[%emt 0:00:46]} Ra7 {[%emt 0:00:17]} 64. Rg6+ {[%emt 0:00:20]} Kh7 {[%emt 0:00:16]} 65. Rh6+ {[%emt 0:00:13]} Kg7 {[%emt 0:00:08]} 66. Rb6 {[%emt 0:00:05]} Rc7 {[%emt 0:00:10]} 67. Rg6+ {[%emt 0:00:28]} 1/2-1/2

[Event "VII Totalizator Sportowy 2022"]
[Site "Bydgoszcz"]
[Date "2022.07.02"]
[Round "8.1"]
[White "Heberla, Bartlomiej"]
[Black "Kucza, Karol"]
[Result "1-0"]
[ECO "C02"]
[WhiteElo "2576"]
[BlackElo "2305"]
[Annotator "TA"]
[PlyCount "118"]
[EventDate "2022.06.25"]
[EventType "swiss"]
[EventCountry "POL"]
[SourceTitle "playchess.com"]
[Source "ChessBase"]
[SourceQuality "1"]
[TimeControl "40/5400+30:1800+30"]

{[%evp 11,118,0,0,-19,-25,-25,-29,-25,-34,-46,-49,-46,-55,-65,-45,-57,-52,-43,-51,-41,0,0,0,0,32,0,75,83,80,55,85,89,88,86,68,66,93,92,86,75,176,120,120,0,479,454,450,436,484,509,477,456,427,26,216,216,216,216,245,243,239,206,375,382,382,382,382,382,382,375,375,375,377,375,377,374,368,345,377,377,368,360,377,372,383,360,353,0,379,369,436,420,647,495,635,598,1537,1986,4922,1050,4875,700,4875,4552,1533,1417,704,683,427]} 1. e4 {[%emt 0:09:02]} e6 {[%emt 0:00:25]} 2. d4 {[%emt 0:00:49]} d5 {[%emt 0:00:06]} 3. e5 {[%emt 0:00:10]} c5 {[%emt 0:00:07]} 4. c3 {[%emt 0:00:03]} Qb6 {[%emt 0:00:11]} 5. Nf3 {[%emt 0:00:35]} Nc6 {[%emt 0:00:14]} 6. Bd3 {[%emt 0:00:07]} cxd4 {[%emt 0:00:12]} 7. O-O $1 {[%emt 0:00:03][%mdl 4] is now more promising than 7.cxd4. C02: French: Advance Variation.} Bd7 {[%emt 0:03:38]} 8. Re1 {[%emt 0:00:07]} Nge7 {[%emt 0:22:42]} 9. h4 {[%emt 0:00:03] Black has an edge.} Rc8 {[%emt 0:06:32]} 10. h5 {[%emt 0:12:05]} h6 {[%emt 0:02:45]} 11. Nbd2 {[%emt 0:00:02]} dxc3 {[%emt 0:03:54]} 12. bxc3 {[%emt 0:00:02]} Na5 {[%emt 0:00:33]} 13. Rb1 {[%emt 0:09:22]} Qc7 {[%emt 0:03:15]} 14. Ba3 {[%emt 0:27:37]} Qxc3 {[%emt 0:06:25]} 15. Nb3 {[%emt 0:01:22] [#]} Nxb3 $146 {[%emt 0:00:36]} ({Predecessor:} 15... Nec6 16. Rc1 Qxe1+ 17. Qxe1 Bxa3 18. Rb1 b6 19. Nxa5 Nxa5 20. Qe3 Nc4 21. Bxc4 Bc5 {½-½ (31) Shevchenko,K (2652)-Gadimbayli,A (2451) Terme Catez 2022}) 16. Rxb3 {[%emt 0:00:12]} Qa5 {[%emt 0:00:28]} 17. Qb1 {[%emt 0:09:24]} b5 {[%emt 0:19:07]} 18. Bb4 {[%emt 0:01:21]} (18. Bd6 $5 {[%cal Rd3b5]}) 18... Qb6 {[%emt 0:01:03]} (18... Qd8 $1 $11 {keeps the balance.}) 19. Bd6 $1 $16 {[%emt 0:02:32][%cal Rd3b5]} a6 {[%emt 0:00:39]} 20. a4 $1 {[%emt 0:00:11][%cal Ra4b5]} Nc6 {[%emt 0:01:24][%cal Be7c6,Bc6a5,Ba5c4][%mdl 32] Hoping for ...Bxd6.} 21. Bxf8 {[%emt 0:04:35] White is much more active.} Rxf8 {[%emt 0:00:13]} 22. axb5 {[%emt 0:00:08]} Na5 {[%emt 0:00:08]} 23. Rb4 {[%emt 0:03:49]} Nc4 {[%emt 0:01:26][%cal Ra6b5]} 24. bxa6 {[%emt 0:02:45]} Qxa6 {[%emt 0:00:04]} 25. Rb8 {[%emt 0:03:02]} Qa5 {[%emt 0:06:48]} (25... Qa7 $16 26. Rxc8+ Bxc8) 26. Rxc8+ $18 {[%emt 0:02:55][%mdl 64] Remove Defender} Bxc8 {[%emt 0:00:05]} 27. Qb8 {[%emt 0:00:18]} ({White should play} 27. Bxc4 $16 dxc4 28. Qb8) 27... Qc5 {[%emt 0:00:27][%mdl 8192]} (27... Qb6 $1 $11 28. Qa8 (28. Qxc8+ $2 Ke7 $19) 28... Qa6 29. Qxa6 Bxa6) 28. Bxc4 {[%emt 0:03:52]} dxc4 {[%emt 0:01:48]} 29. Nd2 $1 {[%emt 0:00:06] aiming for Ne4.} c3 {[%emt 0:08:03]} 30. Ne4 {[%emt 0:00:23]} Qc6 {[%emt 0:00:04]} 31. Nd6+ {[%emt 0:01:57]} Kd7 {[%emt 0:01:21]} 32. Ra1 $2 {[%emt 0:00:29]} (32. Qa7+ $18 Qc7 33. Qd4) 32... Bb7 $2 {[%emt 0:00:28]} 33. Qxb7+ {[%emt 0:00:48]} Qxb7 {[%emt 0:00:04]} 34. Nxb7 {[%emt 0:00:02][%mdl 4096] Endgame KRN-KR} Rb8 {[%emt 0:00:10]} 35. Nc5+ {[%emt 0:01:04]} ({Don't go for} 35. Nd6 $2 c2 36. Kh2 Rb1 37. Ra7+ Kc6 38. Ra6+ Kc5 $19) 35... Kc6 {[%emt 0:00:06] [#]} 36. Nd3 {[%emt 0:00:43]} Kd5 $2 {[%emt 0:00:22] [#]} (36... c2 37. Rc1 Rb1) 37. Kf1 $1 {[%emt 0:02:35]} c2 {[%emt 0:00:33] White must now prevent ...Rb1+.} 38. Ke2 {[%emt 0:03:28]} Rb1 {[%emt 0:00:16]} 39. Ra5+ {[%emt 0:00:01]} Ke4 {[%emt 0:00:59]} 40. Ra4+ {[%emt 0:00:00]} ({Resist} 40. Rc5 c1=B 41. Nxc1 Rb2+ 42. Ke1 Rb1 $18) 40... Kd5 {[%emt 0:00:00]} 41. Kd2 {[%emt 0:01:39] Against c1N} c1=Q+ {[%emt 0:00:38]} 42. Nxc1 {[%emt 0:00:03]} Kxe5 {[%emt 0:00:07]} 43. Nd3+ {[%emt 0:00:32]} Kf6 {[%emt 0:00:11]} 44. Ke3 {[%emt 0:03:05]} Rb5 {[%emt 0:00:14]} 45. g4 {[%emt 0:00:20]} g6 {[%emt 0:00:11]} 46. hxg6 {[%emt 0:01:39]} fxg6 {[%emt 0:00:06]} 47. Rf4+ {[%emt 0:04:12]} Ke7 {[%emt 0:00:19]} 48. Re4 {[%emt 0:00:15]} Kf6 {[%emt 0:00:26]} 49. Rf4+ {[%emt 0:02:09]} Ke7 $1 {[%emt 0:00:10]} 50. Rc4 {[%emt 0:00:42]} Kf6 {[%emt 0:01:04]} 51. Nc5 {[%emt 0:00:16]} g5 {[%emt 0:02:39]} (51... Ke7 $142 52. Ne4 Rb7) 52. Kd4 {[%emt 0:01:58] White is clearly winning.} Kg6 {[%emt 0:00:57]} 53. Nxe6 {[%emt 0:05:46]} h5 {[%emt 0:00:04]} 54. gxh5+ {[%emt 0:01:01]} Kxh5 {[%emt 0:00:05]} 55. Ke4 {[%emt 0:01:11] Strongly threatening Rc5.} Rb1 {[%emt 0:00:20]} 56. Rc3 {[%emt 0:02:34]} g4 {[%emt 0:00:18]} 57. Nf4+ {[%emt 0:00:31]} Kh4 {[%emt 0:00:07]} 58. Ng2+ {[%emt 0:00:07]} Kg5 {[%emt 0:00:05]} 59. Rc5+ {[%emt 0:00:04]} Kg6 {[%emt 0:00:05] Weighted Error Value: White=0.47/Black=0.42} 1-0

[Event "VII Totalizator Sportowy 2022"]
[Site "Bydgoszcz"]
[Date "2022.07.02"]
[Round "8.2"]
[White "Czarnota, Pawel"]
[Black "Tomczak, Jacek"]
[Result "1/2-1/2"]
[ECO "C55"]
[WhiteElo "2502"]
[BlackElo "2584"]
[Annotator "TA"]
[PlyCount "34"]
[EventDate "2022.06.25"]
[EventType "swiss"]
[EventCountry "POL"]
[SourceTitle "playchess.com"]
[Source "ChessBase"]
[SourceQuality "1"]
[TimeControl "40/5400+30:1800+30"]

{[%evp 10,34,36,27,33,29,31,31,39,19,25,0,20,-6,-1,-14,0,0,0,-12,0,-11,0,-10,0,-33,-24]} 1. e4 {[%emt 0:00:03]} e5 {[%emt 0:00:06]} 2. Nf3 {[%emt 0:00:18]} Nc6 {[%emt 0:00:23]} 3. Bc4 {[%emt 0:03:15]} Nf6 {[%emt 0:00:20]} 4. d3 {[%emt 0:00:29]} h6 {[%emt 0:00:19]} 5. O-O {[%emt 0:00:44]} d6 {[%emt 0:00:45]} 6. a4 {[%emt 0:00:59]} g6 {[%emt 0:02:59] C55: Two Knights: 4 d3, 4 d4 exd4 5 e5 and Max Lange Attack.} 7. c3 {[%emt 0:06:39]} Bg7 {[%emt 0:00:18]} 8. b4 {[%emt 0:01:36]} O-O {[%emt 0:13:59] White is slightly better.} 9. a5 {[%emt 0:03:32]} a6 {[%emt 0:03:55]} 10. Qb3 {[%emt 0:01:45] [#]} Nh5 $146 {[%emt 0:08:38]} ({Predecessor:} 10... Qe7 11. Na3 Kh8 12. Nc2 Nh7 13. Ne3 f5 14. exf5 gxf5 15. Nd5 Qd8 16. g3 Nf6 {0-1 (90) Getz,N (2398)-Hammer,J (2652) Kragero 2019}) 11. Re1 {[%emt 0:15:19]} Kh7 {[%emt 0:01:29]} 12. Nbd2 $1 {[%emt 0:08:10]} f5 {[%emt 0:02:53]} 13. Nf1 {[%emt 0:10:39]} fxe4 {[%emt 0:10:16]} 14. dxe4 {[%emt 0:03:24]} Bg4 {[%emt 0:00:17]} 15. Be2 {[%emt 0:01:22][%cal Of3g5] Hoping for Ng5+!} Qd7 {[%emt 0:19:47]} 16. Qd1 {[%emt 0:03:02][%cal Of3g5] Threatens to win with Ng5+!} Be6 {[%emt 0:01:12]} 17. Be3 {[%emt 0:02:15]} Nf4 {[%emt 0:06:12] Weighted Error Value: White=0.06 (flawless) /Black=0.04 (flawless)} 1/2-1/2